fUSD/lending_fUSD_20260121
["ID","MTS","AMOUNT","RATE_DAILY","PERIOD"]
[402955835,1769017848228,-359.44,0.00030849,2]
[402955836,1769017848237,-1000.0,0.00030884,7]
[402955837,1769017848248,-151.0,0.00031158,31]
[402955838,1769017848258,-1000.0,0.00031158,7]
[402955839,1769017848267,-1221.4,0.000312,7]
[402955840,1769017848277,-1407.0,0.00031262,2]
[402955841,1769017848286,-1000.0,0.00031432,7]
[402955842,1769017848297,-2000.0,0.000316,2]
[402955843,1769017848307,-28828.0,0.00031673,2]
[402955844,1769017848318,-534.0,0.0003168,13]
[402955845,1769017848329,-150.00457096,0.00031697,54]
[402955846,1769017848338,-1000.0,0.00031706,7]
[402955847,1769017848347,-1191.07,0.00031726,2]
[402955848,1769017848356,-812.5,0.00031892,30]
[402955849,1769017848366,-1000.0,0.0003198,7]
[402955850,1769017848376,-747.0,0.00032,120]
[402955851,1769017848385,-150.0,0.00032055,2]
[402955852,1769017848394,-9394.81372636,0.00032068,2]
[402955853,1769017848404,-5000.0,0.00032068,2]
[402955854,1769017848685,-5000.0,0.00032068,2]
[402955855,1769017848695,-1793.393491,0.00032068,28]
[402955856,1769017848705,-1793.393491,0.00032068,28]
[402955857,1769017848714,-1793.393491,0.00032068,28]
[402955858,1769017848723,-1793.393491,0.00032068,28]
[402955859,1769017848732,-315.613242,0.00032068,7]
[402955860,1769017848741,-315.613242,0.00032068,7]
[402955861,1769017848751,-315.613242,0.00032068,7]
[402955862,1769017848760,-315.613242,0.00032068,7]
[402955863,1769017848769,-200.0,0.00032232,10]
[402955864,1769017848778,-1000.0,0.00032254,7]
[402955865,1769017848788,-1000.0,0.00032528,7]
[402955866,1769017848797,-1999.0,0.00032802,7]
[402955867,1769017848806,-151.0,0.00032872,2]
[402955868,1769017848815,-150.00457116,0.00032888,58]
[402955869,1769017848825,-313.42,0.000329,14]
[402955870,1769017848837,-453.48,0.000329,2]
[402955871,1769017848846,-151.0,0.00033401,31]
[402955872,1769017848855,-612.13,0.00033562,2]
[402955873,1769017848864,-500.0,0.00033939,60]
[402955874,1769017848875,-238.0,0.00034,120]
[402955875,1769017848885,-185.78872914,0.0003408,62]
[402955876,1769017848893,-1407.0,0.00034262,2]
[402955877,1769017848903,-241.36,0.00034319,30]
[402955878,1769017848912,-25000.0,0.00034329,10]
[402955879,1769017848921,-150.0,0.00034521,2]
[402955880,1769017848930,-329.91342297,0.00034523,2]
[402955881,1769017848940,-453.48,0.000346,2]
[402955882,1769017848950,-10049.65788898,0.0003474,10]
[402955883,1769017848959,-152.533101,0.0003474,31]
[402955884,1769017848968,-558.13,0.00034932,2]
[402955885,1769017848977,-179.72,0.00034932,2]
[402955886,1769017848986,-171.97,0.00034932,2]
[402955887,1769017848995,-935.58,0.00034932,2]
[402955888,1769017849004,-179.72,0.00034932,2]
[402955889,1769017849014,-171.97,0.00034932,2]
[402955890,1769017849023,-558.13,0.00034932,2]
[402955891,1769017849032,-558.13,0.00034932,2]
[402955892,1769017849042,-179.72,0.00034932,2]
[402955893,1769017849051,-171.97,0.00034932,2]
[402955894,1769017849060,-558.13,0.00034932,2]
[402955895,1769017849070,-171.97,0.00034932,2]
[402955896,1769017849079,-150.0,0.00035,2]
[402955897,1769017849088,-451.0,0.00035,2]
[402955898,1769017849097,-2000.0,0.000353,2]
[402955899,1769017849106,-612.13,0.00035317,2]
[402955900,1769017849116,-485.47,0.00035317,2]
[402955901,1769017849125,-484.09,0.00035317,2]
[402955902,1769017849135,-484.09,0.00035317,2]
[402955903,1769017849144,-484.09,0.00035317,2]
[402955904,1769017849154,-484.09,0.00035317,2]
[402955905,1769017849164,-484.09,0.00035317,2]
[402955906,1769017849174,-484.09,0.00035317,2]
[402955907,1769017849184,-296.7950024,0.00035589,30]
[402955908,1769017849193,-179.00775108,0.00035589,30]
[402955909,1769017849203,-151.0,0.00035611,2]
[402955910,1769017849212,-371.12351035,0.00035616,120]
[402955911,1769017849221,-500.0,0.00035616,5]
[402955912,1769017849230,-183.51,0.00035616,2]
[402955913,1769017849240,-453.48,0.000357,2]
[402955914,1769017849249,-700.0,0.000359,13]
[402955915,1769017849259,-500.0,0.00035999,30]
[402955916,1769017849267,-502.25,0.00036,30]
[402955917,1769017849277,-103546.80278632,0.00036,2]
[402955918,1769017849286,-8565.03380943,0.00036,2]
[402955919,1769017849295,-200.0,0.00036,120]
[402955920,1769017849306,-484.09,0.00036276,2]
[402955921,1769017849317,-967.55,0.00036276,2]
[402955922,1769017849326,-484.09,0.00036276,2]
[402955923,1769017849335,-484.09,0.00036276,2]
[402955924,1769017849345,-484.09,0.00036276,2]
[402955925,1769017849354,-965.74,0.00036276,2]
[402955926,1769017849363,-484.09,0.00036276,2]
[402955927,1769017849372,-876.0,0.00036293,11]
[402955928,1769017849381,-185.78872914,0.00036463,71]
[402955929,1769017849390,-10418.99,0.00036587,2]
[402955930,1769017849399,-1607.61794903,0.000368,2]
[402955931,1769017849408,-1951.25189202,0.000368,2]
[402955932,1769017849417,-1784.61343241,0.000369,120]
[402955933,1769017849427,-453.48,0.000369,2]
[402955934,1769017849436,-14100.1730582,0.0003691,2]
[402955935,1769017849445,-152.587,0.00036986,30]
[402955936,1769017849455,-151.0,0.00036986,60]
[402955937,1769017849464,-151.0,0.00036986,60]
[402955938,1769017849474,-150.0,0.00036986,2]
[402955939,1769017849483,-165.35323052,0.00037,2]
[402955940,1769017849493,-1161.0,0.00037,2]
[402955941,1769017849503,-402.6,0.000373,30]
[402955942,1769017849512,-7063.11103354,0.0003739,2]
[402955943,1769017849522,-211.6088061,0.00037454,120]
[402955944,1769017849531,-211.6088061,0.00037454,120]
[402955945,1769017849540,-163.0,0.00037573,11]
[402955946,1769017849550,-4324.08399015,0.0003759,2]
[402955947,1769017849560,-183.5,0.00037646,2]
[402955948,1769017849569,-347.59,0.00037646,2]
[402955949,1769017849578,-150.0,0.00037646,2]
[402955950,1769017849588,-300.0,0.00037646,2]
[402955951,1769017849598,-468.11,0.00037646,2]
[402955952,1769017849607,-468.11,0.00037646,2]
[402955953,1769017849617,-305.06,0.00037646,2]
[402955954,1769017849628,-152.35,0.00037646,2]
[402955955,1769017849637,-152.29,0.00037646,2]
[402955956,1769017849647,-150.0,0.00037646,2]
[402955957,1769017849656,-468.11,0.00037646,2]
[402955958,1769017849666,-150.0,0.00037646,2]
[402955959,1769017849678,-468.11,0.00037646,2]
[402955960,1769017849687,-179.72,0.00037646,2]
[402955961,1769017849697,-468.11,0.00037646,2]
[402955962,1769017849707,-179.72,0.00037646,2]
[402955963,1769017849717,-171.97,0.00037646,2]
[402955964,1769017849727,-179.72,0.00037646,2]
[402955965,1769017849736,-179.72,0.00037646,2]
[402955966,1769017849745,-171.92,0.00037646,2]
[402955967,1769017849754,-356.11,0.00037646,2]
[402955968,1769017849763,-185.78872914,0.00037655,75]
[402955969,1769017849772,-534.0,0.0003772,19]
[402955970,1769017849781,-201.72565527,0.0003788,2]
[402955971,1769017849790,-1011.11,0.000379,14]
[402955972,1769017849799,-1221.4,0.000379,14]
[402955973,1769017849809,-5673.02375218,0.00038,3]
[402955974,1769017849818,-3500.0,0.00038,4]
[402955975,1769017849827,-400.0,0.00038,120]
[402955976,1769017849839,-200.0,0.00038,120]
[402955977,1769017849848,-298.92102999,0.0003835,2]
[402955978,1769017849857,-500.0,0.00038356,60]
[402955979,1769017849867,-151.0,0.00038356,120]
[402955980,1769017849875,-151.0,0.00038356,120]
[402955981,1769017849886,-151.0,0.00038356,120]
[402955982,1769017849896,-151.0,0.00038356,120]
[402955983,1769017849906,-151.0,0.00038356,120]
[402955984,1769017849915,-172.175422,0.00038356,120]
[402955985,1769017849926,-151.0,0.00038356,120]
[402955986,1769017849935,-151.0,0.00038356,120]
[402955987,1769017849944,-151.0,0.00038356,120]
[402955988,1769017849954,-151.0,0.00038356,120]
[402955989,1769017849963,-157.410192,0.00038356,120]
[402955990,1769017849973,-157.410192,0.00038356,120]
[402955991,1769017849983,-157.410192,0.00038356,120]
[402955992,1769017849993,-157.410192,0.00038356,120]
[402955993,1769017850005,-316.939799,0.00038356,30]
[402955994,1769017850015,-316.939799,0.00038356,30]
[402955995,1769017850025,-316.939799,0.00038356,30]
[402955996,1769017850035,-316.939799,0.00038356,30]
[402955997,1769017850045,-151.0,0.00038356,15]
[402955998,1769017850056,-151.0,0.00038356,15]
[402955999,1769017850066,-151.0,0.00038356,120]
[402956000,1769017850076,-248.953339,0.00038356,120]
[402956001,1769017850088,-248.953339,0.00038356,120]
[402956002,1769017850098,-248.953339,0.00038356,120]
[402956003,1769017850107,-248.953339,0.00038356,120]
[402956004,1769017850116,-151.0,0.00038356,120]
[402956005,1769017850127,-151.0,0.00038356,120]
[402956006,1769017850136,-151.0,0.00038356,120]
[402956007,1769017850146,-151.0,0.00038356,120]
[402956008,1769017850155,-293.188087,0.00038356,120]
[402956009,1769017850165,-151.0,0.00038356,120]
[402956010,1769017850175,-151.0,0.00038356,120]
[402956011,1769017850184,-158.280415,0.00038356,120]
[402956012,1769017850193,-1643.940831,0.00038356,120]
[402956013,1769017850203,-158.280415,0.00038356,120]
[402956014,1769017850212,-1643.940831,0.00038356,120]
[402956015,1769017850221,-158.280415,0.00038356,120]
[402956016,1769017850230,-1643.940831,0.00038356,120]
[402956017,1769017850239,-158.280415,0.00038356,120]
[402956018,1769017850248,-1643.940831,0.00038356,120]
[402956019,1769017850258,-151.0,0.00038356,120]
[402956020,1769017850267,-151.0,0.00038356,120]
[402956021,1769017850276,-151.0,0.00038356,120]
[402956022,1769017850286,-233.544946,0.00038356,120]
[402956023,1769017850296,-151.0,0.00038356,120]
[402956024,1769017850305,-233.544946,0.00038356,120]
[402956025,1769017850314,-151.0,0.00038356,120]
[402956026,1769017850323,-233.544946,0.00038356,120]
[402956027,1769017850332,-151.0,0.00038356,120]
[402956028,1769017850342,-233.544946,0.00038356,120]
[402956029,1769017850351,-200.069545,0.00038356,120]
[402956030,1769017850361,-836.0,0.00038389,11]
[402956031,1769017850371,-500.0,0.00038411,60]
[402956032,1769017850380,-500.0,0.00038466,60]
[402956033,1769017850389,-500.0,0.0003852,60]
[402956034,1769017850399,-500.0,0.00038575,60]
[402956035,1769017850408,-500.0,0.0003863,60]
[402956036,1769017850418,-4000.0,0.0003863,120]
[402956037,1769017850428,-162.0,0.00038664,11]
[402956038,1769017850438,-836.0,0.00038664,11]
[402956039,1769017850447,-500.0,0.00038685,60]
[402956040,1769017850457,-329.91342297,0.00038686,2]
[402956041,1769017850466,-194.31477362,0.00038691,2]
[402956042,1769017850475,-160.0,0.000387,11]
[402956043,1769017850484,-500.0,0.0003874,60]
[402956044,1769017850493,-5800.0,0.00038788,14]
[402956045,1769017850502,-500.0,0.0003879,30]
[402956046,1769017850511,-5800.0,0.00038791,14]
[402956047,1769017850520,-5800.0,0.00038791,14]
[402956048,1769017850530,-500.0,0.00038794,60]
[402956049,1769017850539,-152.0,0.00038815,3]
[402956050,1769017850549,-640.48147101,0.00038832,15]
[402956051,1769017850559,-185.78872914,0.00038847,83]
[402956052,1769017850568,-500.0,0.00038849,60]
[402956053,1769017850578,-500.0,0.00038856,30]
[402956054,1769017850587,-16014.00303599,0.00038874,2]
[402956055,1769017850597,-300.0,0.00038874,2]
[402956056,1769017850607,-300.0,0.00038874,2]
[402956057,1769017850616,-515.44314342,0.00038874,2]
[402956058,1769017850626,-304.38145112,0.00038874,2]
[402956059,1769017850635,-300.0,0.00038874,2]
[402956060,1769017850645,-300.0,0.00038874,2]
[402956061,1769017850654,-300.0,0.00038874,2]
[402956062,1769017850664,-850.48650463,0.00038874,2]
[402956063,1769017850674,-304.23239932,0.00038874,2]
[402956064,1769017850687,-579.48942375,0.00038874,2]
[402956065,1769017850697,-305.40833228,0.00038874,2]
[402956066,1769017850706,-300.0,0.00038874,2]
[402956067,1769017850716,-456.00338787,0.00038874,2]
[402956068,1769017850725,-300.0,0.00038874,2]
[402956069,1769017850735,-1075.48337091,0.00038874,2]
[402956070,1769017850745,-300.0,0.00038874,2]
[402956071,1769017850754,-369.14396502,0.00038874,2]
[402956072,1769017850764,-300.0,0.00038874,2]
[402956073,1769017850774,-300.0,0.00038874,2]
[402956074,1769017850783,-515.44314342,0.00038874,2]
[402956075,1769017850792,-304.38145112,0.00038874,2]
[402956076,1769017850802,-300.0,0.00038874,2]
[402956077,1769017850812,-300.0,0.00038874,2]
[402956078,1769017850821,-300.0,0.00038874,2]
[402956079,1769017850831,-850.48650463,0.00038874,2]
[402956080,1769017850843,-304.23239932,0.00038874,2]
[402956081,1769017850852,-579.48942375,0.00038874,2]
[402956082,1769017850862,-305.40833228,0.00038874,2]
[402956083,1769017850872,-300.0,0.00038874,2]
[402956084,1769017850883,-456.00338787,0.00038874,2]
[402956085,1769017850900,-300.0,0.00038874,2]
[402956086,1769017850910,-1075.48337091,0.00038874,2]
[402956087,1769017850921,-300.0,0.00038874,2]
[402956088,1769017850931,-369.14396502,0.00038874,2]
[402956089,1769017850942,-300.0,0.00038874,2]
[402956090,1769017850951,-486.76757325,0.00038874,2]
[402956091,1769017850960,-515.44314342,0.00038874,2]
[402956092,1769017850969,-304.38145112,0.00038874,2]
[402956093,1769017850979,-529.99111115,0.00038874,2]
[402956094,1769017850988,-499.11867942,0.00038874,2]
[402956095,1769017850998,-300.0,0.00038874,2]
[402956096,1769017851007,-850.48650463,0.00038874,2]
[402956097,1769017851017,-304.23239932,0.00038874,2]
[402956098,1769017851027,-579.48942375,0.00038874,2]
[402956099,1769017851039,-305.40833228,0.00038874,2]
[402956100,1769017851049,-300.0,0.00038874,2]
[402956101,1769017851059,-456.00338787,0.00038874,2]
[402956102,1769017851068,-300.0,0.00038874,2]
[402956103,1769017851078,-1075.48337091,0.00038874,2]
[402956104,1769017851087,-300.0,0.00038874,2]
[402956105,1769017851099,-369.14396502,0.00038874,2]
[402956106,1769017851108,-300.0,0.00038874,2]
[402956107,1769017851118,-515.44314342,0.00038874,2]
[402956108,1769017851127,-304.38145112,0.00038874,2]
[402956109,1769017851137,-300.0,0.00038874,2]
[402956110,1769017851146,-850.48650463,0.00038874,2]
[402956111,1769017851156,-304.23239932,0.00038874,2]
[402956112,1769017851166,-579.48942375,0.00038874,2]
[402956113,1769017851176,-305.40833228,0.00038874,2]
[402956114,1769017851186,-300.0,0.00038874,2]
[402956115,1769017851196,-456.00338787,0.00038874,2]
[402956116,1769017851205,-300.0,0.00038874,2]
[402956117,1769017851215,-1075.48337091,0.00038874,2]
[402956118,1769017851224,-300.0,0.00038874,2]
[402956119,1769017851233,-369.14396502,0.00038874,2]
[402956120,1769017851243,-300.0,0.00038874,2]
[402956121,1769017851252,-515.44314342,0.00038874,2]
[402956122,1769017851261,-304.38145112,0.00038874,2]
[402956123,1769017851271,-300.0,0.00038874,2]
[402956124,1769017851280,-850.48650463,0.00038874,2]
[402956125,1769017851289,-304.23239932,0.00038874,2]
[402956126,1769017851298,-579.48942375,0.00038874,2]
[402956127,1769017851307,-305.40833228,0.00038874,2]
[402956128,1769017851324,-300.0,0.00038874,2]
[402956129,1769017851343,-456.00338787,0.00038874,2]
[402956130,1769017851353,-300.0,0.00038874,2]
[402956131,1769017851370,-1075.48337091,0.00038874,2]
[402956132,1769017851379,-300.0,0.00038874,2]
[402956133,1769017851388,-369.14396502,0.00038874,2]
[402956134,1769017851398,-300.0,0.00038874,2]
[402956135,1769017851407,-515.44314342,0.00038874,2]
[402956136,1769017851416,-304.38145112,0.00038874,2]
[402956137,1769017851425,-343.3900873,0.00038874,2]
[402956138,1769017851435,-850.48650463,0.00038874,2]
[402956139,1769017851444,-304.23239932,0.00038874,2]
[402956140,1769017851456,-579.48942375,0.00038874,2]
[402956141,1769017851477,-305.40833228,0.00038874,2]
[402956142,1769017851489,-300.0,0.00038874,2]
[402956143,1769017851499,-456.00338787,0.00038874,2]
[402956144,1769017851508,-328.78021446,0.00038874,2]
[402956145,1769017851518,-1075.48337091,0.00038874,2]
[402956146,1769017851527,-300.0,0.00038874,2]
[402956147,1769017851537,-369.14396502,0.00038874,2]
[402956148,1769017851553,-300.0,0.00038874,2]
[402956149,1769017851569,-515.44314342,0.00038874,2]
[402956150,1769017851579,-304.38145112,0.00038874,2]
[402956151,1769017851588,-850.48650463,0.00038874,2]
[402956152,1769017851598,-304.23239932,0.00038874,2]
[402956153,1769017851607,-579.48942375,0.00038874,2]
[402956154,1769017851617,-305.40833228,0.00038874,2]
[402956155,1769017851626,-300.0,0.00038874,2]
[402956156,1769017851636,-456.00338787,0.00038874,2]
[402956157,1769017851645,-1075.48337091,0.00038874,2]
[402956158,1769017851654,-301.04148955,0.00038874,2]
[402956159,1769017851664,-369.14396502,0.00038874,2]
[402956160,1769017851675,-418.62156208,0.00038874,2]
[402956161,1769017851685,-515.44314342,0.00038874,2]
[402956162,1769017851694,-304.38145112,0.00038874,2]
[402956163,1769017851704,-850.48650463,0.00038874,2]
[402956164,1769017851714,-304.23239932,0.00038874,2]
[402956165,1769017851723,-579.48942375,0.00038874,2]
[402956166,1769017851732,-305.40833228,0.00038874,2]
[402956167,1769017851742,-300.0,0.00038874,2]
[402956168,1769017851752,-456.00338787,0.00038874,2]
[402956169,1769017851762,-1075.48337091,0.00038874,2]
[402956170,1769017851772,-369.14396502,0.00038874,2]
[402956171,1769017851781,-515.44314342,0.00038874,2]
[402956172,1769017851791,-304.38145112,0.00038874,2]
[402956173,1769017851801,-850.48650463,0.00038874,2]
[402956174,1769017851812,-304.23239932,0.00038874,2]
[402956175,1769017851821,-579.32279266,0.00038874,2]
[402956176,1769017851831,-305.40833228,0.00038874,2]
[402956177,1769017851845,-511.99903937,0.00038874,2]
[402956178,1769017851855,-456.00338787,0.00038874,2]
[402956179,1769017851865,-1075.48337091,0.00038874,2]
[402956180,1769017851875,-369.14396502,0.00038874,2]
[402956181,1769017851885,-515.44314342,0.00038874,2]
[402956182,1769017851894,-304.38145112,0.00038874,2]
[402956183,1769017851904,-850.48650463,0.00038874,2]
[402956184,1769017851915,-304.23239932,0.00038874,2]
[402956185,1769017851924,-305.40833228,0.00038874,2]
[402956186,1769017851933,-456.00338787,0.00038874,2]
[402956187,1769017851943,-1075.48337091,0.00038874,2]
[402956188,1769017851953,-369.14396502,0.00038874,2]
[402956189,1769017851962,-515.44314342,0.00038874,2]
[402956190,1769017851971,-304.38145112,0.00038874,2]
[402956191,1769017851981,-850.48650463,0.00038874,2]
[402956192,1769017851990,-304.23239932,0.00038874,2]
[402956193,1769017852002,-305.40833228,0.00038874,2]
[402956194,1769017852012,-456.00338787,0.00038874,2]
[402956195,1769017852023,-1075.48337091,0.00038874,2]
[402956196,1769017852033,-369.14396502,0.00038874,2]
[402956197,1769017852043,-515.44314342,0.00038874,2]
[402956198,1769017852052,-304.38145112,0.00038874,2]
[402956199,1769017852062,-850.48650463,0.00038874,2]
[402956200,1769017852071,-304.23239932,0.00038874,2]
[402956201,1769017852080,-305.40833228,0.00038874,2]
[402956202,1769017852089,-456.00338787,0.00038874,2]
[402956203,1769017852099,-1075.48337091,0.00038874,2]
[402956204,1769017852109,-369.14396502,0.00038874,2]
[402956205,1769017852118,-515.44314342,0.00038874,2]
[402956206,1769017852127,-304.38145112,0.00038874,2]
[402956207,1769017852137,-850.48650463,0.00038874,2]
[402956208,1769017852146,-304.23239932,0.00038874,2]
[402956209,1769017852155,-305.40833228,0.00038874,2]
[402956210,1769017852165,-456.00338787,0.00038874,2]
[402956211,1769017852175,-1075.48337091,0.00038874,2]
[402956212,1769017852184,-369.14396502,0.00038874,2]
[402956213,1769017852193,-515.44314342,0.00038874,2]
[402956214,1769017852203,-304.38145112,0.00038874,2]
[402956215,1769017852212,-850.48650463,0.00038874,2]
[402956216,1769017852223,-304.23239932,0.00038874,2]
[402956217,1769017852234,-305.40833228,0.00038874,2]
[402956218,1769017852244,-456.00338787,0.00038874,2]
[402956219,1769017852255,-1075.48337091,0.00038874,2]
[402956220,1769017852264,-369.14396502,0.00038874,2]
[402956221,1769017852273,-515.44314342,0.00038874,2]
[402956222,1769017852284,-304.38145112,0.00038874,2]
[402956223,1769017852294,-850.48650463,0.00038874,2]
[402956224,1769017852304,-304.23239932,0.00038874,2]
[402956225,1769017852314,-305.40833228,0.00038874,2]
[402956226,1769017852324,-456.00338787,0.00038874,2]
[402956227,1769017852334,-1075.48337091,0.00038874,2]
[402956228,1769017852344,-369.14396502,0.00038874,2]
[402956229,1769017852354,-515.44314342,0.00038874,2]
[402956230,1769017852368,-304.38145112,0.00038874,2]
[402956231,1769017852384,-850.48650463,0.00038874,2]
[402956232,1769017852393,-304.23239932,0.00038874,2]
[402956233,1769017852402,-305.40833228,0.00038874,2]
[402956234,1769017852411,-456.00338787,0.00038874,2]
[402956235,1769017852421,-1075.48337091,0.00038874,2]
[402956236,1769017852430,-369.14396502,0.00038874,2]
[402956237,1769017852440,-515.44314342,0.00038874,2]
[402956238,1769017852449,-304.38145112,0.00038874,2]
[402956239,1769017852459,-850.48650463,0.00038874,2]
[402956240,1769017852468,-304.24195266,0.00038874,2]
[402956241,1769017852477,-305.40833228,0.00038874,2]
[402956242,1769017852487,-456.00338787,0.00038874,2]
[402956243,1769017852496,-1075.48337091,0.00038874,2]
[402956244,1769017852505,-369.14396502,0.00038874,2]
[402956245,1769017852514,-515.44314342,0.00038874,2]
[402956246,1769017852523,-304.38145112,0.00038874,2]
[402956247,1769017852532,-850.48650463,0.00038874,2]
[402956248,1769017852542,-305.41364582,0.00038874,2]
[402956249,1769017852550,-608.01040529,0.00038874,2]
[402956250,1769017852560,-1075.48337091,0.00038874,2]
[402956251,1769017852570,-492.19671975,0.00038874,2]
[402956252,1769017852579,-515.45211108,0.00038874,2]
[402956253,1769017852588,-304.38674675,0.00038874,2]
[402956254,1769017852598,-1133.9820064,0.00038874,2]
[402956255,1769017852607,-358.50834351,0.00038874,2]
[402956256,1769017852616,-300.0,0.00038874,2]
[402956257,1769017852626,-300.0,0.00038874,2]
[402956258,1769017852636,-850.48650463,0.00038874,2]
[402956259,1769017852645,-304.23239932,0.00038874,2]
[402956260,1769017852655,-300.0,0.00038874,2]
[402956261,1769017852664,-579.48942376,0.00038874,2]
[402956262,1769017852674,-300.0,0.00038874,2]
[402956263,1769017852683,-300.0,0.00038874,2]
[402956264,1769017852692,-300.0,0.00038874,2]
[402956265,1769017852702,-300.0,0.00038874,2]
[402956266,1769017852711,-305.40833227,0.00038874,2]
[402956267,1769017852721,-300.0,0.00038874,2]
[402956268,1769017852731,-300.0,0.00038874,2]
[402956269,1769017852933,-300.0,0.00038874,2]
[402956270,1769017852970,-456.00338787,0.00038874,2]
[402956271,1769017852980,-300.0,0.00038874,2]
[402956272,1769017852989,-300.0,0.00038874,2]
[402956273,1769017852999,-1075.48337091,0.00038874,2]
[402956274,1769017853008,-300.00000001,0.00038874,2]
[402956275,1769017853018,-300.0,0.00038874,2]
[402956276,1769017853028,-300.0,0.00038874,2]
[402956277,1769017853038,-369.14396502,0.00038874,2]
[402956278,1769017853047,-300.0,0.00038874,2]
[402956279,1769017853057,-300.0,0.00038874,2]
[402956280,1769017853066,-300.0,0.00038874,2]
[402956281,1769017853076,-300.0,0.00038874,2]
[402956282,1769017853085,-300.0,0.00038874,2]
[402956283,1769017853095,-300.0,0.00038874,2]
[402956284,1769017853105,-515.44314341,0.00038874,2]
[402956285,1769017853114,-304.38145112,0.00038874,2]
[402956286,1769017853124,-300.0,0.00038874,2]
[402956287,1769017853134,-300.0,0.00038874,2]
[402956288,1769017853143,-300.00000001,0.00038874,2]
[402956289,1769017853153,-300.0,0.00038874,2]
[402956290,1769017853162,-300.0,0.00038874,2]
[402956291,1769017853174,-300.0,0.00038874,2]
[402956292,1769017853184,-300.0,0.00038874,2]
[402956293,1769017853194,-991.02739036,0.00038874,2]
[402956294,1769017853204,-300.0,0.00038874,2]
[402956295,1769017853213,-300.0,0.00038874,2]
[402956296,1769017853223,-300.0,0.00038874,2]
[402956297,1769017853232,-850.48650463,0.00038874,2]
[402956298,1769017853241,-304.23239932,0.00038874,2]
[402956299,1769017853251,-300.0,0.00038874,2]
[402956300,1769017853261,-579.48942374,0.00038874,2]
[402956301,1769017853270,-300.0,0.00038874,2]
[402956302,1769017853280,-300.0,0.00038874,2]
[402956303,1769017853290,-300.0,0.00038874,2]
[402956304,1769017853299,-300.0,0.00038874,2]
[402956305,1769017853309,-305.40833228,0.00038874,2]
[402956306,1769017853318,-300.0,0.00038874,2]
[402956307,1769017853328,-300.0,0.00038874,2]
[402956308,1769017853338,-300.0,0.00038874,2]
[402956309,1769017853347,-456.00338787,0.00038874,2]
[402956310,1769017853357,-300.0,0.00038874,2]
[402956311,1769017853367,-300.0,0.00038874,2]
[402956312,1769017853378,-300.0,0.00038874,2]
[402956313,1769017853388,-1075.48337091,0.00038874,2]
[402956314,1769017853398,-300.0,0.00038874,2]
[402956315,1769017853408,-300.0,0.00038874,2]
[402956316,1769017853418,-369.14396502,0.00038874,2]
[402956317,1769017853428,-300.0,0.00038874,2]
[402956318,1769017853437,-300.0,0.00038874,2]
[402956319,1769017853447,-300.0,0.00038874,2]
[402956320,1769017853457,-300.0,0.00038874,2]
[402956321,1769017853469,-300.0,0.00038874,2]
[402956322,1769017853483,-300.0,0.00038874,2]
[402956323,1769017853494,-515.44314343,0.00038874,2]
[402956324,1769017853504,-304.38145112,0.00038874,2]
[402956325,1769017853514,-300.0,0.00038874,2]
[402956326,1769017853524,-300.0,0.00038874,2]
[402956327,1769017853534,-300.0,0.00038874,2]
[402956328,1769017853544,-300.0,0.00038874,2]
[402956329,1769017853554,-300.0,0.00038874,2]
[402956330,1769017853564,-300.0,0.00038874,2]
[402956331,1769017853574,-300.0,0.00038874,2]
[402956332,1769017853584,-300.0,0.00038874,2]
[402956333,1769017853594,-622.68563382,0.00038874,2]
[402956334,1769017853604,-300.0,0.00038874,2]